fUST/lending_fUST_20250323
["ID","MTS","AMOUNT","RATE_DAILY","PERIOD"]
[356572164,1742696961578,-500.0,0.00018419,2]
[356572165,1742696961599,-500.0,0.00018419,2]
[356572166,1742696961618,-500.0,0.00018419,2]
[356572167,1742696961640,-500.0,0.00018419,2]
[356572168,1742696961660,-500.0,0.00018419,2]
[356572169,1742696961681,-500.0,0.00018419,2]
[356572170,1742696961702,-500.0,0.00018419,2]
[356572171,1742696961724,-500.0,0.00018419,2]
[356572172,1742696961746,-535.81868873,0.00018419,2]
[356572173,1742696961768,-500.0,0.00018419,2]
[356572174,1742696961790,-500.0,0.00018419,2]
[356572175,1742696961810,-500.0,0.00018419,2]
[356572176,1742696961831,-500.0,0.00018419,2]
[356572177,1742696961855,-500.0,0.00018419,2]
[356572178,1742696961876,-500.0,0.00018419,2]
[356572179,1742696961898,-500.0,0.00018419,2]
[356572180,1742696961920,-500.0,0.00018419,2]
[356572181,1742696961941,-500.0,0.00018419,2]
[356572182,1742696961962,-500.0,0.00018419,2]
[356572183,1742696961988,-500.0,0.00018419,2]
[356572184,1742696962010,-500.0,0.00018419,2]
[356572185,1742696962030,-500.0,0.00018419,2]
[356572186,1742696962052,-500.0,0.00018419,2]
[356572187,1742696962073,-500.0,0.00018419,2]
[356572188,1742696962095,-500.0,0.00018419,2]
[356572189,1742696962115,-500.0,0.00018419,2]
[356572190,1742696962137,-500.0,0.00018419,2]
[356572191,1742696962160,-500.0,0.00018419,2]
[356572192,1742696962182,-500.0,0.00018419,2]
[356572193,1742696962202,-500.0,0.00018419,2]
[356572194,1742696962222,-500.0,0.00018419,2]
[356572195,1742696962243,-500.0,0.00018419,2]
[356572196,1742696962263,-500.0,0.00018419,2]
[356572197,1742696962284,-317.86579948,0.00018419,2]
[356572198,1742696962306,-500.0,0.00018419,2]
[356572199,1742696962331,-639.90691997,0.00018419,2]
[356572200,1742696962354,-500.0,0.00018419,2]
[356572201,1742696962375,-500.0,0.00018419,2]
[356572202,1742696962396,-500.0,0.00018419,2]
[356572203,1742696962417,-500.0,0.00018419,2]
[356572204,1742696962437,-500.0,0.00018419,2]
[356572205,1742696962458,-10954.18052872,0.00018419,2]
[356572206,1742696962479,-500.0,0.00018419,2]
[356572207,1742696962502,-500.0,0.00018419,2]
[356572208,1742696962524,-500.0,0.00018419,2]
[356572209,1742696962545,-500.0,0.00018419,2]
[356572210,1742696962567,-10954.18052872,0.00018419,2]
[356572211,1742696962590,-500.0,0.00018419,2]
[356572212,1742696962613,-500.0,0.00018419,2]
[356572213,1742696962635,-10954.18052872,0.00018419,2]
[356572214,1742696962656,-10954.18052872,0.00018419,2]
[356572215,1742696962677,-10954.18052872,0.00018419,2]
[356572216,1742696962699,-10954.18052872,0.00018419,2]
[356572217,1742696962721,-10954.18052872,0.00018419,2]
[356572218,1742696962742,-10954.18052872,0.00018419,2]
[356572219,1742696962765,-9135.49838678,0.00018419,2]
[356572234,1742697024214,-384.2299978,0.00018003,2]
[356572274,1742697032551,-677.72528202,0.00018003,2]
[356572283,1742697033354,-150.00809855,0.00018002,2]
[356572284,1742697035832,-164.1889786,0.00018002,2]
[356572288,1742697039110,-188.13303764,0.00018002,2]
[356572289,1742697039119,-5989.4353565,0.00018002,2]
[356572290,1742697039128,-500.0,0.00018002,2]
[356572291,1742697039137,-257.54064439,0.00018002,2]
[356572292,1742697039147,-3042.48381323,0.00018002,2]
[356572293,1742697039187,-2946.95154327,0.00018002,2]
[356572294,1742697039197,-487.76743555,0.00018002,2]
[356572295,1742697039207,-5989.4353565,0.00018002,2]
[356572296,1742697039216,-5989.4353565,0.00018002,2]
[356572297,1742697039225,-5989.4353565,0.00018002,2]
[356572298,1742697039235,-5989.4353565,0.00018002,2]
[356572299,1742697039246,-5989.4353565,0.00018002,2]
[356572300,1742697039268,-5989.4353565,0.00018002,2]
[356572301,1742697039278,-5989.4353565,0.00018002,2]
[356572302,1742697039288,-5989.4353565,0.00018002,2]
[356572303,1742697039458,-5989.4353565,0.00018002,2]
[356572304,1742697039467,-5989.4353565,0.00018002,2]
[356572305,1742697039477,-5989.4353565,0.00018002,2]
[356572306,1742697039486,-5989.4353565,0.00018002,2]
[356572307,1742697039495,-5989.4353565,0.00018002,2]
[356572308,1742697039504,-5989.4353565,0.00018002,2]
[356572309,1742697039514,-5989.4353565,0.00018002,2]
[356572310,1742697039523,-5989.4353565,0.00018002,2]
[356572311,1742697039532,-5989.4353565,0.00018002,2]
[356572312,1742697039542,-5989.4353565,0.00018002,2]
[356572313,1742697039551,-5989.4353565,0.00018002,2]
[356572314,1742697039560,-5989.4353565,0.00018002,2]
[356572315,1742697039569,-5989.4353565,0.00018002,2]
[356572316,1742697039578,-5989.4353565,0.00018002,2]
[356572317,1742697039588,-5989.4353565,0.00018002,2]
[356572318,1742697039597,-5989.4353565,0.00018002,2]
[356572319,1742697039606,-5989.4353565,0.00018002,2]
[356572320,1742697039615,-5989.4353565,0.00018002,2]
[356572321,1742697039624,-5989.4353565,0.00018002,2]
[356572322,1742697039633,-5989.4353565,0.00018002,2]
[356572323,1742697039643,-5989.4353565,0.00018002,2]
[356572324,1742697039652,-5989.4353565,0.00018002,2]
[356572325,1742697039662,-5989.4353565,0.00018002,2]
[356572326,1742697039671,-5989.4353565,0.00018002,2]
[356572327,1742697039680,-5989.4353565,0.00018002,2]
[356572328,1742697039689,-5989.4353565,0.00018002,2]
[356572329,1742697039698,-5989.4353565,0.00018002,2]
[356572330,1742697039707,-5989.4353565,0.00018002,2]
[356572331,1742697039718,-5989.4353565,0.00018002,2]
[356572332,1742697039727,-5989.4353565,0.00018002,2]
[356572333,1742697039737,-5989.4353565,0.00018002,2]
[356572334,1742697039747,-5989.4353565,0.00018002,2]
[356572335,1742697039756,-5989.4353565,0.00018002,2]
[356572336,1742697039765,-5989.4353565,0.00018002,2]
[356572337,1742697039775,-5989.4353565,0.00018002,2]
[356572338,1742697039784,-5989.4353565,0.00018002,2]
[356572339,1742697039794,-5989.4353565,0.00018002,2]
[356572340,1742697039804,-5989.4353565,0.00018002,2]
[356572341,1742697039813,-5989.4353565,0.00018002,2]
[356572342,1742697039827,-5989.4353565,0.00018002,2]
[356572343,1742697039838,-5989.4353565,0.00018002,2]
[356572344,1742697039847,-5989.4353565,0.00018002,2]
[356572345,1742697039857,-5989.4353565,0.00018002,2]
[356572346,1742697039867,-61115.38696658,0.00018003,2]
[356572347,1742697039876,-200.18308797,0.00018319,2]
[356572348,1742697039886,-300.0,0.00018418,2]
[356572349,1742697039895,-14905.3752598,0.00018422,2]
[356572350,1742697039905,-500.0,0.00018473,2]
[356572351,1742697039915,-504.51381647,0.00018473,2]
[356572352,1742697039924,-505.56513004,0.00018473,2]
[356572353,1742697039934,-505.13350737,0.00018473,2]
[356572354,1742697039943,-500.0,0.00018473,2]
[356572355,1742697039953,-178.46656403,0.00018473,2]
[356572356,1742697039963,-504.37095036,0.00018473,2]
[356572357,1742697039972,-500.0,0.00018473,2]
[356572358,1742697039982,-500.0,0.00018473,2]
[356572359,1742697039994,-500.0,0.00018473,2]
[356572360,1742697040004,-500.0,0.00018473,2]
[356572361,1742697040014,-500.0,0.00018473,2]
[356572362,1742697040023,-500.0,0.00018473,2]
[356572363,1742697040035,-471.94719344,0.00018532,2]
[356572364,1742697040044,-200.9110784,0.00018587,2]
[356572365,1742697040054,-152.0,0.00018591,2]
[356572366,1742697040064,-160.0,0.00018644,3]
[356572367,1742697040075,-507.22732772,0.0001876,2]
[356572368,1742697040085,-500.0,0.0001876,2]
[356572369,1742697040095,-500.0,0.0001876,2]
[356572370,1742697040104,-500.0,0.0001876,2]
[356572371,1742697040114,-500.0,0.0001876,2]
[356572372,1742697040124,-500.0,0.0001876,2]
[356572373,1742697040134,-160.0,0.00019055,4]
[356572374,1742697040144,-168.510265,0.00019178,2]
[356572375,1742697040154,-150.0,0.00019202,2]
[356572376,1742697040163,-465.34735967,0.00019458,2]
[356572377,1742697040173,-160.0,0.00019466,5]
[356572378,1742697040183,-1336.3028484,0.00019559,2]
[356572379,1742697040193,-3832.18101677,0.00019585,2]
[356572380,1742697040203,-150.0,0.00019702,2]
[356572381,1742697040212,-66454.48474976,0.0001975,2]
[356572382,1742697040222,-160.0,0.00019877,6]
[356572383,1742697040232,-150.0,0.00019908,2]
[356572384,1742697040242,-213.98714643,0.0002,120]
[356572385,1742697040252,-164.98354082,0.0002,4]
[356572386,1742697040262,-150.0,0.00020012,2]
[356572387,1742697040272,-420.0,0.00020088,2]
[356572388,1742697040282,-160.0,0.00020288,7]
[356572389,1742697040292,-150.0,0.00020312,2]
[356572390,1742697040301,-2061.7,0.00020465,2]
[356572391,1742697040311,-227.9584832,0.0002049,2]
[356572392,1742697040321,-24900.0,0.00020617,2]
[356572393,1742697040331,-160.0,0.00020699,8]
[356572394,1742697040341,-162.84862775,0.00020699,5]
[356572395,1742697040350,-150.0,0.00020805,2]
[356572396,1742697040360,-740.8633205,0.00020844,2]
[356572397,1742697040370,-150.0,0.0002087,2]
[356572398,1742697040380,-169.2504502,0.00021002,2]
[356572400,1742697040390,-151.0,0.000211,4]
[356572402,1742697040400,-150.0,0.0002125,2]
[356572404,1742697040409,-859.8356225,0.00021278,2]
[356572406,1742697040419,-151.0,0.000214,3]
[356572408,1742697040429,-150.0,0.00021439,2]
[356572410,1742697040439,-639.02774414,0.00021781,2]
[356572412,1742697040450,-151.0,0.000218,3]
[356572414,1742697040461,-150.0,0.00021905,2]
[356572416,1742697040471,-587.0,0.00021909,2]
[356572418,1742697040481,-500.0,0.00021917,2]
[356572420,1742697040490,-502.92405568,0.00021917,2]
[356572422,1742697040500,-504.53793815,0.00021917,2]
[356572424,1742697040509,-502.67054308,0.00021917,2]
[356572426,1742697040518,-515.77711285,0.00021917,2]
[356572428,1742697040528,-504.14937335,0.00021917,2]
[356572430,1742697040537,-515.06396803,0.00021917,2]
[356572432,1742697040546,-515.84220707,0.00021917,2]
[356572434,1742697040555,-501.00139555,0.00021917,2]
[356572436,1742697040565,-500.0,0.00021917,2]
[356572438,1742697040574,-515.79472822,0.00021917,2]
[356572440,1742697040583,-508.74524955,0.00021917,2]
[356572443,1742697040594,-516.30510145,0.00021917,2]
[356572445,1742697040603,-501.2145313,0.00021917,2]
[356572447,1742697040613,-507.95154963,0.00021917,2]
[356572449,1742697040622,-531.32516827,0.00021917,2]
[356572451,1742697040631,-508.91558224,0.00021917,2]
[356572453,1742697040640,-502.82153547,0.00021917,2]
[356572455,1742697040650,-502.90429462,0.00021917,2]
[356572457,1742697040659,-507.83130264,0.00021917,2]
[356572459,1742697040669,-500.0,0.00021917,2]
[356572461,1742697040678,-504.1063497,0.00021917,2]
[356572463,1742697040688,-508.42846384,0.00021917,2]
[356572465,1742697040697,-503.3757416,0.00021917,2]
[356572467,1742697040707,-503.03766961,0.00021917,2]
[356572469,1742697040716,-500.0,0.00021917,2]
[356572471,1742697040726,-503.23136881,0.00021917,2]
[356572473,1742697040735,-502.68372103,0.00021917,2]
[356572474,1742697040744,-505.97138384,0.00021917,2]
[356572475,1742697040754,-506.66501308,0.00021917,2]
[356572476,1742697040764,-409.3300745,0.00021917,2]
[356572477,1742697040773,-500.0,0.00021917,2]
[356572478,1742697040783,-376.20196206,0.00021917,2]
[356572479,1742697040792,-503.65199931,0.00021917,2]
[356572480,1742697040803,-500.0,0.00021917,2]
[356572481,1742697040812,-500.0,0.00021917,2]
[356572482,1742697040822,-500.0,0.00021917,2]
[356572483,1742697040832,-739.43,0.00021917,2]
[356572484,1742697040841,-1223.93,0.00021917,2]
[356572485,1742697040851,-500.0,0.00021917,2]
[356572486,1742697040860,-838.21,0.00021917,2]
[356572487,1742697040870,-500.0,0.00021917,2]
[356572488,1742697040879,-500.0,0.00021917,2]
[356572489,1742697040889,-500.0,0.00021917,2]
[356572490,1742697040898,-512.91342284,0.00021917,2]
[356572491,1742697040907,-500.0,0.00021917,2]
[356572492,1742697040917,-508.65730344,0.00021917,2]
[356572493,1742697040926,-438.43352693,0.00021917,2]
[356572494,1742697040936,-500.0,0.00021917,2]
[356572495,1742697040946,-502.59709576,0.00021917,2]
[356572496,1742697040961,-501.61232285,0.00021917,2]
[356572497,1742697040970,-518.63653733,0.00021917,2]
[356572498,1742697040980,-500.0,0.00021917,2]
[356572499,1742697040995,-500.0,0.00021917,2]
[356572500,1742697041009,-500.0,0.00021917,2]
[356572501,1742697041021,-500.0,0.00021917,2]
[356572502,1742697041031,-629.68,0.00021917,2]
[356572503,1742697041040,-510.79253101,0.00021917,2]
[356572504,1742697041049,-500.0,0.00021917,2]
[356572505,1742697041059,-502.36376089,0.00021917,2]
[356572506,1742697041070,-500.0,0.00021917,2]
[356572507,1742697041080,-512.14237068,0.00021917,2]
[356572508,1742697041089,-500.0,0.00021917,2]
[356572509,1742697041098,-1060.06,0.00021917,2]
[356572510,1742697041107,-504.04376815,0.00021917,2]
[356572511,1742697041118,-500.0,0.00021917,2]
[356572512,1742697041127,-500.0,0.00021917,2]
[356572513,1742697041137,-517.26130113,0.00021917,2]
[356572514,1742697041146,-636.82544224,0.00021917,2]
[356572515,1742697041156,-527.74829059,0.00021917,2]
[356572516,1742697041166,-501.50270372,0.00021917,2]
[356572517,1742697041175,-501.94106943,0.00021917,2]
[356572518,1742697041184,-500.0,0.00021917,2]
[356572519,1742697041194,-500.0,0.00021917,2]
[356572520,1742697041203,-513.32595907,0.00021917,2]
[356572521,1742697041213,-500.0,0.00021917,2]
[356572522,1742697041222,-500.0,0.00021917,2]
[356572523,1742697041232,-528.22058133,0.00021917,2]
[356572524,1742697041241,-500.0,0.00021917,2]
[356572525,1742697041250,-500.0,0.00021917,2]
[356572526,1742697041260,-500.0,0.00021917,2]
[356572527,1742697041270,-500.0,0.00021917,2]
[356572528,1742697041279,-500.0,0.00021917,2]
[356572529,1742697041289,-500.0,0.00021917,2]
[356572530,1742697041299,-200.0,0.00021917,2]
[356572531,1742697041309,-500.0,0.00021917,2]
[356572532,1742697041318,-525.78391101,0.00021917,2]
[356572533,1742697041328,-506.83988437,0.00021917,2]
[356572534,1742697041338,-500.0,0.00021917,2]
[356572535,1742697041347,-509.5074645,0.00021917,2]
[356572536,1742697041366,-512.0616439,0.00021917,2]
[356572537,1742697041377,-500.0,0.00021917,2]
[356572538,1742697041387,-585.15,0.00021917,2]
[356572539,1742697041397,-517.41368695,0.00021917,2]
[356572540,1742697041407,-523.76518204,0.00021917,2]
[356572541,1742697041417,-500.0,0.00021917,2]
[356572542,1742697041427,-500.0,0.00021917,2]
[356572543,1742697041438,-500.0,0.00021917,2]
[356572544,1742697041448,-500.0,0.00021917,2]
[356572545,1742697041459,-504.38168933,0.00021917,2]
[356572546,1742697041469,-500.0,0.00021917,2]
[356572547,1742697041479,-682.46,0.00021917,2]
[356572548,1742697041489,-779.94,0.00021917,2]
[356572549,1742697041500,-680.29,0.00021917,2]
[356572550,1742697041510,-500.0,0.00021917,2]
[356572551,1742697041520,-500.0,0.00021917,2]
[356572552,1742697041529,-500.0,0.00021917,2]
[356572553,1742697041830,-500.0,0.00021917,2]
[356572554,1742697041839,-500.0,0.00021917,2]
[356572555,1742697041849,-500.0,0.00021917,2]
[356572556,1742697041858,-725.7,0.00021917,2]
[356572557,1742697041867,-500.0,0.00021917,2]
[356572558,1742697041878,-500.0,0.00021917,2]
[356572559,1742697041888,-500.0,0.00021917,2]
[356572560,1742697041897,-536.86,0.00021917,2]
[356572561,1742697041907,-500.0,0.00021917,2]
[356572562,1742697041916,-500.0,0.00021917,2]
[356572563,1742697041926,-500.0,0.00021917,2]
[356572564,1742697041935,-500.0,0.00021917,2]
[356572565,1742697041945,-500.0,0.00021917,2]
[356572566,1742697041954,-500.0,0.00021917,2]
[356572567,1742697041964,-500.0,0.00021917,2]
[356572568,1742697041973,-520.49,0.00021917,2]
[356572569,1742697041983,-599.1,0.00021917,2]
[356572570,1742697041996,-500.0,0.00021917,2]
[356572571,1742697042006,-500.0,0.00021917,2]
[356572572,1742697042016,-500.0,0.00021917,2]
[356572573,1742697042025,-500.0,0.00021917,2]
[356572574,1742697042035,-500.0,0.00021917,2]
[356572575,1742697042044,-500.0,0.00021917,2]
[356572576,1742697042054,-500.0,0.00021917,2]
[356572577,1742697042063,-500.0,0.00021917,2]
[356572578,1742697042073,-500.0,0.00021917,2]
[356572579,1742697042082,-500.0,0.00021917,2]
[356572580,1742697042090,-500.0,0.00021917,2]
[356572581,1742697042099,-903.9,0.00021917,2]
[356572582,1742697042108,-672.13,0.00021917,2]
[356572583,1742697042118,-500.0,0.00021917,2]
[356572584,1742697042127,-500.0,0.00021917,2]
[356572585,1742697042136,-500.0,0.00021917,2]
[356572586,1742697042146,-500.0,0.00021917,2]
[356572587,1742697042156,-500.0,0.00021917,2]
[356572588,1742697042165,-569.34,0.00021917,2]
[356572589,1742697042174,-510.13134145,0.00021917,2]
[356572590,1742697042184,-644.0,0.00021917,2]
[356572591,1742697042193,-721.59,0.00021917,2]
[356572592,1742697042202,-510.81,0.00021917,2]
[356572593,1742697042211,-651.97,0.00021917,2]
[356572594,1742697042220,-500.0,0.00021917,2]
[356572595,1742697042230,-656.12,0.00021917,2]
[356572596,1742697042239,-500.0,0.00021917,2]
[356572597,1742697042249,-500.0,0.00021917,2]
[356572598,1742697042258,-500.0,0.00021917,2]
[356572599,1742697042268,-500.0,0.00021917,2]
[356572600,1742697042277,-1563.11,0.00021917,2]
[356572601,1742697042286,-1789.23,0.00021917,2]
[356572602,1742697042296,-500.0,0.00021917,2]
[356572603,1742697042306,-500.0,0.00021917,2]
[356572604,1742697042315,-700.63,0.00021917,2]
[356572605,1742697042325,-500.0,0.00021917,2]
[356572606,1742697042334,-500.0,0.00021917,2]
[356572607,1742697042344,-803.33,0.00021917,2]
[356572608,1742697042354,-677.8,0.00021917,2]
[356572609,1742697042363,-500.0,0.00021917,2]
[356572610,1742697042372,-850.2,0.00021917,2]
[356572611,1742697042382,-1164.2,0.00021917,2]
[356572612,1742697042391,-2065.63,0.00021917,2]
[356572613,1742697042400,-925.65,0.00021917,2]
[356572614,1742697042409,-623.76,0.00021917,2]
[356572615,1742697042418,-500.0,0.00021917,2]
[356572616,1742697042428,-1986.6,0.00021917,2]
[356572617,1742697042437,-500.0,0.00021917,2]
[356572618,1742697042447,-1003.24,0.00021917,2]
[356572619,1742697042457,-500.0,0.00021917,2]
[356572620,1742697042466,-709.87,0.00021917,2]
[356572621,1742697042475,-700.06,0.00021917,2]
[356572622,1742697042484,-500.0,0.00021917,2]
[356572623,1742697042493,-500.0,0.00021917,2]
[356572624,1742697042502,-500.0,0.00021917,2]
[356572625,1742697042511,-715.79,0.00021917,2]
[356572626,1742697042520,-500.0,0.00021917,2]
[356572627,1742697042529,-500.0,0.00021917,2]
[356572628,1742697042539,-500.0,0.00021917,2]
[356572629,1742697042548,-509.39,0.00021917,2]
[356572630,1742697042558,-1755.67,0.00021917,2]
[356572631,1742697042567,-656.57,0.00021917,2]
[356572632,1742697042577,-500.0,0.00021917,2]
[356572633,1742697042586,-1315.44,0.00021917,2]
[356572634,1742697042595,-500.0,0.00021917,2]
[356572635,1742697042605,-500.0,0.00021917,2]
[356572636,1742697042614,-545.79,0.00021917,2]
[356572637,1742697042624,-1419.51,0.00021917,2]
[356572638,1742697042633,-1473.21,0.00021917,2]
[356572639,1742697042642,-500.0,0.00021917,2]
[356572640,1742697042651,-2482.8,0.00021917,2]
[356572641,1742697042660,-619.12,0.00021917,2]
[356572642,1742697042669,-500.0,0.00021917,2]
[356572643,1742697042678,-1476.81,0.00021917,2]
[356572644,1742697042687,-984.1,0.00021917,2]
[356572645,1742697042696,-500.0,0.00021917,2]
[356572646,1742697042705,-500.0,0.00021917,2]
[356572647,1742697042714,-721.48,0.00021917,2]
[356572648,1742697042723,-500.0,0.00021917,2]
[356572649,1742697042732,-189.17830229,0.00021917,2]
[356572650,1742697042742,-764.47,0.00021917,2]
[356572651,1742697042751,-500.0,0.00021917,2]
[356572652,1742697042760,-1134.17,0.00021917,2]
[356572653,1742697042769,-565.8,0.00021917,2]
[356572654,1742697042778,-735.62,0.00021917,2]
[356572655,1742697042787,-834.09,0.00021917,2]
[356572656,1742697042797,-540.71534802,0.00021917,2]
[356572657,1742697042806,-500.0,0.00021917,2]
[356572658,1742697042815,-500.0,0.00021917,2]
[356572659,1742697042825,-992.72,0.00021917,2]
[356572660,1742697042834,-500.0,0.00021917,2]
[356572661,1742697042844,-500.0,0.00021917,2]
[356572662,1742697042853,-948.49,0.00021917,2]
[356572663,1742697042863,-500.0,0.00021917,2]
[356572664,1742697042872,-714.77,0.00021917,2]
[356572665,1742697042881,-578.27,0.00021917,2]
[356572666,1742697042891,-558.73,0.00021917,2]
[356572667,1742697042901,-500.0,0.00021917,2]
[356572668,1742697042910,-500.0,0.00021917,2]
[356572669,1742697042919,-500.0,0.00021917,2]
[356572670,1742697042929,-592.42,0.00021917,2]
[356572671,1742697042939,-704.02,0.00021917,2]
[356572672,1742697042948,-500.0,0.00021917,2]
[356572673,1742697042958,-500.0,0.00021917,2]
[356572674,1742697042968,-500.0,0.00021917,2]
[356572675,1742697042977,-500.0,0.00021917,2]
[356572676,1742697042988,-1599.28,0.00021917,2]
[356572677,1742697043000,-500.0,0.00021917,2]
[356572678,1742697043010,-514.5746889,0.00021917,2]
[356572679,1742697043019,-827.78,0.00021917,2]
[356572680,1742697043028,-500.0,0.00021917,2]
[356572681,1742697043038,-515.41058351,0.00021917,2]
[356572682,1742697043048,-932.35,0.00021917,2]
[356572683,1742697043058,-500.13083582,0.00021917,2]
[356572684,1742697043070,-316.31400601,0.00021917,2]
[356572685,1742697043081,-908.67,0.00021917,2]
[356572686,1742697043090,-2490.97,0.00021917,2]
[356572687,1742697043100,-157.91984699,0.00021917,2]
[356572688,1742697043109,-500.0,0.00021917,2]
[356572689,1742697043119,-512.32381074,0.00021917,2]
[356572690,1742697043129,-500.0,0.00021917,2]
[356572691,1742697043138,-1420.46,0.00021917,2]
[356572692,1742697043148,-500.0,0.00021917,2]
[356572693,1742697043157,-3661.04,0.00021917,2]
[356572694,1742697043167,-500.0,0.00021917,2]
[356572695,1742697043176,-500.0,0.00021917,2]
[356572696,1742697043186,-509.26897879,0.00021917,2]
[356572697,1742697043195,-935.33,0.00021917,2]
[356572698,1742697043206,-3108.16,0.00021917,2]
[356572699,1742697043216,-565.92,0.00021917,2]
[356572700,1742697043226,-500.0,0.00021917,2]
[356572701,1742697043236,-500.81275232,0.00021917,2]
[356572703,1742697043246,-502.82695795,0.00021917,2]
[356572704,1742697043255,-507.43898063,0.00021917,2]
[356572705,1742697043265,-500.80986099,0.00021917,2]
[356572706,1742697043274,-1821.57,0.00021917,2]
[356572707,1742697043285,-500.0,0.00021917,2]
[356572708,1742697043294,-500.0,0.00021917,2]
[356572709,1742697043304,-508.90695888,0.00021917,2]
[356572710,1742697043314,-556.91,0.00021917,2]
[356572711,1742697043324,-505.58470001,0.00021917,2]
[356572712,1742697043334,-6352.44,0.00021917,2]
[356572713,1742697043343,-510.91769995,0.00021917,2]
[356572714,1742697043353,-503.32260785,0.00021917,2]
[356572715,1742697043362,-512.86912706,0.00021917,2]
[356572716,1742697043372,-500.0,0.00021917,2]
[356572717,1742697043382,-500.0,0.00021917,2]
[356572718,1742697043391,-3178.37,0.00021917,2]
[356572719,1742697043401,-1031.49,0.00021917,2]
[356572720,1742697043411,-887.15,0.00021917,2]
[356572721,1742697043420,-500.0,0.00021917,2]
[356572722,1742697043430,-915.98,0.00021917,2]
[356572723,1742697043439,-500.0,0.00021917,2]
[356572724,1742697043449,-608.22,0.00021917,2]
[356572725,1742697043459,-1337.65,0.00021917,2]
[356572726,1742697043469,-500.0,0.00021917,2]
[356572727,1742697043478,-1126.08,0.00021917,2]
[356572728,1742697043488,-517.10395325,0.00021917,2]
[356572729,1742697043497,-8802.41,0.00021917,2]
[356572730,1742697043507,-505.60940475,0.00021917,2]
[356572731,1742697043516,-765.24,0.00021917,2]
[356572732,1742697043526,-519.14810561,0.00021917,2]
[356572733,1742697043535,-500.0,0.00021917,2]
[356572734,1742697043545,-500.0,0.00021917,2]
[356572735,1742697043555,-550.66,0.00021917,2]
[356572736,1742697043564,-501.87850044,0.00021917,2]
[356572737,1742697043574,-1700.56,0.00021917,2]
[356572738,1742697043583,-813.07,0.00021917,2]
[356572739,1742697043592,-500.0,0.00021917,2]
[356572740,1742697043602,-3219.12,0.00021917,2]
[356572741,1742697043612,-500.0,0.00021917,2]
[356572742,1742697043621,-555.63,0.00021917,2]
[356572743,1742697043631,-500.0,0.00021917,2]
[356572744,1742697043640,-1040.6,0.00021917,2]
[356572745,1742697043649,-500.0,0.00021917,2]
[356572746,1742697043659,-713.42,0.00021917,2]
[356572747,1742697043668,-500.0,0.00021917,2]
[356572748,1742697043677,-2207.66,0.00021917,2]
[356572749,1742697043686,-1517.84,0.00021917,2]
[356572750,1742697043696,-500.0,0.00021917,2]
[356572751,1742697043705,-1464.96,0.00021917,2]
[356572752,1742697043714,-7259.76,0.00021917,2]
[356572753,1742697043723,-1019.16,0.00021917,2]
[356572754,1742697043732,-792.92,0.00021917,2]
[356572755,1742697043741,-500.0,0.00021917,2]
[356572756,1742697043750,-500.0,0.00021917,2]
[356572757,1742697043759,-1128.03,0.00021917,2]
[356572758,1742697043768,-1569.6,0.00021917,2]
[356572759,1742697043778,-500.0,0.00021917,2]
[356572760,1742697043787,-2574.42,0.00021917,2]
[356572761,1742697043796,-500.0,0.00021917,2]
[356572762,1742697043806,-1001.1,0.00021917,2]
[356572763,1742697043815,-500.0,0.00021917,2]
[356572764,1742697043824,-3428.65,0.00021917,2]
[356572765,1742697043834,-2000.0,0.00021917,2]
[356572766,1742697043843,-500.0,0.00021917,2]